fUSD/lending_fUSD_20240614
["ID","MTS","AMOUNT","RATE_DAILY","PERIOD"]
[329475337,1718383846896,-600.0,0.000239,8]
[329475338,1718383846921,-160.68601905,0.00023909,2]
[329475339,1718383846964,-692.48526,0.00024,2]
[329475340,1718383846999,-549.89601157,0.00024,2]
[329475341,1718383847014,-205.28303072,0.00024,2]
[329475342,1718383847052,-1976.54,0.00024089,2]
[329475343,1718383847072,-56215.86264004,0.00024099,3]
[329475344,1718383847132,-11649.72028789,0.00024099,3]
[329475345,1718383847148,-3917.56,0.00024099,3]
[329475346,1718383847184,-13062.8,0.00024099,3]
[329475347,1718383847240,-8199.60063947,0.00024099,3]
[329475348,1718383847253,-1976.54,0.00024099,2]
[329475349,1718383847276,-1976.54,0.00024099,2]
[329475350,1718383847305,-1976.54,0.00024099,2]
[329475351,1718383847349,-1976.54,0.00024099,2]
[329475352,1718383847396,-198.75294983,0.00024099,2]
[329475353,1718383847432,-364.20577069,0.000241,2]
[329475354,1718383847453,-412.54908243,0.000241,2]
[329475355,1718383847516,-1754.57731999,0.000241,7]
[329475356,1718383847598,-467.25139027,0.000241,7]
[329475357,1718383847624,-197.57902409,0.00024107,10]
[329475358,1718383847638,-1989.03027427,0.00024107,10]
[329475359,1718383847653,-2058.7735572,0.00024108,2]
[329475360,1718383847680,-1337.96,0.00024109,3]
[329475361,1718383847697,-1337.96,0.00024109,3]
[329475362,1718383847713,-2331.14,0.00024109,3]
[329475363,1718383847740,-16181.93,0.00024109,3]
[329475364,1718383847751,-912.97,0.00024109,3]
[329475365,1718383847781,-756.36,0.00024109,3]
[329475366,1718383847825,-724.85,0.00024109,3]
[329475367,1718383847851,-634.34704757,0.00024109,3]
[329475368,1718383847892,-155.99669593,0.00024109,3]
[329475369,1718383847934,-610.27552011,0.00024109,3]
[329475373,1718383847988,-500.0,0.00024109,3]
[329475378,1718383848003,-500.0,0.00024109,3]
[329475380,1718383848056,-500.0,0.00024109,3]
[329475385,1718383848088,-500.0,0.00024109,3]
[329475388,1718383848125,-500.0,0.00024109,3]
[329475391,1718383848137,-500.0,0.00024109,3]
[329475395,1718383848231,-500.0,0.00024109,3]
[329475398,1718383848254,-500.0,0.00024109,3]
[329475402,1718383848286,-500.0,0.00024109,3]
[329475404,1718383848302,-500.0,0.00024109,3]
[329475406,1718383848317,-500.0,0.00024109,3]
[329475409,1718383848378,-500.0,0.00024109,3]
[329475410,1718383848411,-500.0,0.00024109,3]
[329475413,1718383848461,-500.0,0.00024109,3]
[329475416,1718383848548,-500.0,0.00024109,3]
[329475418,1718383848575,-600.65,0.00024109,3]
[329475420,1718383848587,-500.0,0.00024109,3]
[329475422,1718383848610,-403.78649963,0.00024109,3]
[329475423,1718383848621,-500.0,0.00024109,3]
[329475426,1718383848634,-621.44738967,0.00024109,3]
[329475428,1718383848648,-500.0,0.00024109,3]
[329475431,1718383848671,-500.0,0.00024109,3]
[329475433,1718383848700,-500.0,0.00024109,3]
[329475435,1718383848712,-500.0,0.00024109,3]
[329475438,1718383848769,-500.0,0.00024109,3]
[329475440,1718383848820,-500.0,0.00024109,3]
[329475441,1718383848840,-500.0,0.00024109,3]
[329475442,1718383848884,-790.85,0.00024109,3]
[329475443,1718383848912,-500.0,0.00024109,3]
[329475444,1718383848941,-500.0,0.00024109,3]
[329475445,1718383848952,-500.0,0.00024109,3]
[329475446,1718383848980,-500.0,0.00024109,3]
[329475448,1718383848994,-500.0,0.00024109,3]
[329475450,1718383849010,-500.0,0.00024109,3]
[329475452,1718383849032,-500.0,0.00024109,3]
[329475453,1718383849082,-500.0,0.00024109,3]
[329475454,1718383849110,-500.0,0.00024109,3]
[329475455,1718383849173,-500.0,0.00024109,3]
[329475456,1718383849188,-500.0,0.00024109,3]
[329475457,1718383849228,-500.0,0.00024109,3]
[329475458,1718383849252,-500.0,0.00024109,3]
[329475459,1718383849276,-500.0,0.00024109,3]
[329475460,1718383849291,-500.0,0.00024109,3]
[329475461,1718383849333,-507.72,0.00024109,3]
[329475462,1718383849347,-500.0,0.00024109,3]
[329475463,1718383849397,-704.39,0.00024109,3]
[329475464,1718383849428,-500.0,0.00024109,3]
[329475465,1718383849487,-150.0,0.00024109,3]
[329475466,1718383849510,-1728.94,0.00024109,3]
[329475467,1718383849551,-500.0,0.00024109,3]
[329475468,1718383849633,-500.0,0.00024109,3]
[329475469,1718383849661,-500.0,0.00024109,3]
[329475470,1718383849672,-500.0,0.00024109,3]
[329475471,1718383849685,-614.18,0.00024109,3]
[329475472,1718383849702,-476.56012934,0.00024109,3]
[329475473,1718383849725,-1011.57,0.00024109,3]
[329475474,1718383849752,-500.0,0.00024109,3]
[329475475,1718383849765,-155.77000043,0.00024109,3]
[329475476,1718383849792,-985.32,0.00024109,3]
[329475477,1718383849807,-804.63,0.00024109,3]
[329475478,1718383849832,-727.28,0.00024109,3]
[329475479,1718383849888,-500.0,0.00024109,3]
[329475480,1718383849912,-500.0,0.00024109,3]
[329475481,1718383849923,-500.0,0.00024109,3]
[329475483,1718383849952,-500.0,0.00024109,3]
[329475485,1718383849981,-500.0,0.00024109,3]
[329475487,1718383850009,-500.0,0.00024109,3]
[329475489,1718383850033,-568.19,0.00024109,3]
[329475491,1718383850052,-500.0,0.00024109,3]
[329475493,1718383850109,-500.0,0.00024109,3]
[329475495,1718383850120,-500.0,0.00024109,3]
[329475496,1718383850162,-500.0,0.00024109,3]
[329475498,1718383850174,-500.0,0.00024109,3]
[329475500,1718383850210,-500.0,0.00024109,3]
[329475502,1718383850264,-500.0,0.00024109,3]
[329475504,1718383850277,-500.0,0.00024109,3]
[329475506,1718383850294,-500.0,0.00024109,3]
[329475508,1718383850312,-500.0,0.00024109,3]
[329475510,1718383850326,-500.0,0.00024109,3]
[329475522,1718383850585,-540.91102613,0.00024109,3]
[329475525,1718383850641,-500.0,0.00024109,3]
[329475527,1718383850680,-500.0,0.00024109,3]
[329475529,1718383850704,-532.58,0.00024109,3]
[329475531,1718383850738,-500.0,0.00024109,3]
[329475532,1718383850794,-500.0,0.00024109,3]
[329475534,1718383850849,-500.0,0.00024109,3]
[329475537,1718383850895,-500.0,0.00024109,3]
[329475539,1718383850930,-500.0,0.00024109,3]
[329475541,1718383850952,-500.0,0.00024109,3]
[329475543,1718383850980,-500.0,0.00024109,3]
[329475544,1718383851009,-500.0,0.00024109,3]
[329475546,1718383851065,-1589.68,0.00024109,3]
[329475548,1718383851096,-500.0,0.00024109,3]
[329475550,1718383851133,-500.0,0.00024109,3]
[329475553,1718383851182,-692.27,0.00024109,3]
[329475555,1718383851194,-500.0,0.00024109,3]
[329475556,1718383851212,-500.0,0.00024109,3]
[329475558,1718383851240,-262.54380136,0.00024109,3]
[329475560,1718383851259,-1762.91,0.00024109,3]
[329475562,1718383851290,-1648.83,0.00024109,3]
[329475563,1718383851334,-500.0,0.00024109,3]
[329475565,1718383851360,-500.0,0.00024109,3]
[329475567,1718383851378,-451.235525,0.00024109,3]
[329475575,1718383851646,-48.764475,0.00024109,3]
[329475576,1718383851664,-506.14060585,0.00024109,3]
[329475578,1718383851676,-1035.36,0.00024109,3]
[329475580,1718383851688,-500.0,0.00024109,3]
[329475582,1718383851717,-699.07,0.00024109,3]
[329475583,1718383851728,-500.0,0.00024109,3]
[329475585,1718383851757,-518.80574849,0.00024109,3]
[329475586,1718383851773,-500.0,0.00024109,3]
[329475588,1718383851830,-1371.75,0.00024109,3]
[329475590,1718383851856,-500.0,0.00024109,3]
[329475593,1718383851877,-500.0,0.00024109,3]
[329475595,1718383851890,-500.0,0.00024109,3]
[329475597,1718383851906,-386.99630674,0.00024109,3]
[329475600,1718383851942,-1629.39,0.00024109,3]
[329475602,1718383851955,-500.0,0.00024109,3]
[329475604,1718383851977,-1016.82,0.00024109,3]
[329475606,1718383851992,-1155.24,0.00024109,3]
[329475607,1718383852044,-500.0,0.00024109,3]
[329475609,1718383852139,-722.97,0.00024109,3]
[329475612,1718383852205,-500.0,0.00024109,3]
[329475613,1718383852219,-500.0,0.00024109,3]
[329475615,1718383852272,-1112.84,0.00024109,3]
[329475616,1718383852299,-500.0,0.00024109,3]
[329475617,1718383852335,-500.0,0.00024109,3]
[329475618,1718383852351,-1435.03,0.00024109,3]
[329475619,1718383852403,-500.0,0.00024109,3]
[329475620,1718383852478,-8816.42,0.00024109,3]
[329475621,1718383852530,-500.0,0.00024109,3]
[329475622,1718383852568,-500.0,0.00024109,3]
[329475623,1718383852603,-500.0,0.00024109,3]
[329475624,1718383852668,-500.0,0.00024109,3]
[329475625,1718383852744,-500.0,0.00024109,3]
[329475626,1718383852772,-500.0,0.00024109,3]
[329475627,1718383852820,-500.0,0.00024109,3]
[329475628,1718383852832,-500.0,0.00024109,3]
[329475630,1718383852865,-1846.46,0.00024109,3]
[329475631,1718383852887,-277.08068286,0.00024109,3]
[329475633,1718383852916,-500.0,0.00024109,3]
[329475634,1718383852934,-500.0,0.00024109,3]
[329475637,1718383852970,-1575.39,0.00024109,3]
[329475638,1718383852987,-500.0,0.00024109,3]
[329475640,1718383853017,-1060.31,0.00024109,3]
[329475642,1718383853028,-500.0,0.00024109,3]
[329475645,1718383853092,-500.0,0.00024109,3]
[329475647,1718383853126,-500.0,0.00024109,3]
[329475650,1718383853152,-500.0,0.00024109,3]
[329475652,1718383853188,-1462.97,0.00024109,3]
[329475654,1718383853202,-1764.41,0.00024109,3]
[329475656,1718383853216,-2281.71,0.00024109,3]
[329475658,1718383853249,-500.0,0.00024109,3]
[329475660,1718383853265,-500.0,0.00024109,3]
[329475662,1718383853322,-500.0,0.00024109,3]
[329475664,1718383853352,-699.92,0.00024109,3]
[329475665,1718383853387,-500.0,0.00024109,3]
[329475667,1718383853414,-500.0,0.00024109,3]
[329475669,1718383853441,-3054.59,0.00024109,3]
[329475671,1718383853458,-500.0,0.00024109,3]
[329475672,1718383853506,-6693.42,0.00024109,3]
[329475673,1718383853531,-22416.05,0.00024109,3]
[329475674,1718383853564,-500.0,0.00024109,3]
[329475675,1718383853597,-500.0,0.00024109,3]
[329475676,1718383853612,-623.42,0.00024109,3]
[329475677,1718383853652,-903.08,0.00024109,3]
[329475678,1718383853668,-500.0,0.00024109,3]
[329475679,1718383853716,-509.14,0.00024109,3]
[329475680,1718383853750,-500.0,0.00024109,3]
[329475681,1718383853801,-500.0,0.00024109,3]
[329475682,1718383853829,-1011.48,0.00024109,3]
[329475683,1718383853841,-500.0,0.00024109,3]
[329475684,1718383853854,-736.52,0.00024109,3]
[329475685,1718383853873,-500.0,0.00024109,3]
[329475686,1718383853920,-731.55,0.00024109,3]
[329475687,1718383853954,-539.32,0.00024109,3]
[329475688,1718383853985,-2586.74,0.00024109,3]
[329475689,1718383854044,-10445.19,0.00024109,3]
[329475690,1718383854089,-500.0,0.00024109,3]
[329475691,1718383854111,-506.13810341,0.00024109,3]
[329475692,1718383854152,-6633.55,0.00024109,3]
[329475693,1718383854226,-500.0,0.00024109,3]
[329475694,1718383854291,-500.0,0.00024109,3]
[329475695,1718383854339,-1023.83,0.00024109,3]
[329475696,1718383854360,-12093.4,0.00024109,3]
[329475697,1718383854378,-500.0,0.00024109,3]
[329475698,1718383854411,-637.44,0.00024109,3]
[329475699,1718383854476,-3358.77,0.00024109,3]
[329475700,1718383854532,-1681.2,0.00024109,3]
[329475701,1718383854593,-878.64,0.00024109,3]
[329475702,1718383854628,-498.5994,0.00024109,3]
[329475703,1718383854652,-541.29,0.00024109,3]
[329475704,1718383854688,-536.30061806,0.00024109,3]
[329475705,1718383854724,-2498.72,0.00024109,3]
[329475706,1718383854784,-637.7,0.00024109,3]
[329475707,1718383854818,-1413.21,0.00024109,3]
[329475708,1718383854884,-500.0,0.00024109,3]
[329475709,1718383854899,-500.0,0.00024109,3]
[329475710,1718383854917,-500.0,0.00024109,3]
[329475711,1718383854929,-573.65,0.00024109,3]
[329475712,1718383854940,-500.0,0.00024109,3]
[329475713,1718383854952,-1540.1,0.00024109,3]
[329475714,1718383854982,-500.0,0.00024109,3]
[329475715,1718383854997,-665.95,0.00024109,3]
[329475716,1718383855009,-504.13,0.00024109,3]
[329475717,1718383855030,-3924.13,0.00024109,3]
[329475718,1718383855063,-500.0,0.00024109,3]
[329475719,1718383855082,-576.63,0.00024109,3]
[329475720,1718383855113,-2043.84,0.00024109,3]
[329475721,1718383855131,-4997.19,0.00024109,3]
[329475723,1718383855159,-500.0,0.00024109,3]
[329475727,1718383855241,-934.83,0.00024109,3]
[329475729,1718383855254,-10404.25,0.00024109,3]
[329475732,1718383855355,-13450.75,0.00024109,3]
[329475733,1718383855371,-500.0,0.00024109,3]
[329475735,1718383855388,-500.0,0.00024109,3]
[329475737,1718383855439,-1795.44,0.00024109,3]
[329475739,1718383855476,-500.0,0.00024109,3]
[329475741,1718383855497,-500.0,0.00024109,3]
[329475743,1718383855509,-500.0,0.00024109,3]
[329475745,1718383855536,-500.0,0.00024109,3]
[329475747,1718383855550,-3132.63,0.00024109,3]
[329475749,1718383855573,-500.0,0.00024109,3]
[329475751,1718383855616,-500.0,0.00024109,3]
[329475752,1718383855651,-500.0,0.00024109,3]
[329475753,1718383855663,-500.0,0.00024109,3]
[329475756,1718383855722,-1962.98,0.00024109,3]
[329475758,1718383855792,-5085.39,0.00024109,3]
[329475760,1718383855831,-500.0,0.00024109,3]
[329475763,1718383855861,-4710.15,0.00024109,3]
[329475765,1718383855888,-964.51,0.00024109,3]
[329475767,1718383855900,-500.0,0.00024109,3]
[329475768,1718383855923,-753.67,0.00024109,3]
[329475770,1718383855933,-500.0,0.00024109,3]
[329475772,1718383855975,-3756.59,0.00024109,3]
[329475774,1718383855993,-546.4,0.00024109,3]
[329475775,1718383856025,-500.0,0.00024109,3]
[329475778,1718383856043,-500.0,0.00024109,3]
[329475780,1718383856077,-500.0,0.00024109,3]
[329475783,1718383856137,-3343.43,0.00024109,3]
[329475785,1718383856159,-281.70011064,0.00024109,3]
[329475787,1718383856177,-787.31,0.00024109,3]
[329475789,1718383856192,-500.0,0.00024109,3]
[329475790,1718383856204,-500.0,0.00024109,3]
[329475792,1718383856218,-500.0,0.00024109,3]
[329475795,1718383856229,-500.0,0.00024109,3]
[329475797,1718383856247,-500.0,0.00024109,3]
[329475798,1718383856279,-500.0,0.00024109,3]
[329475799,1718383856292,-1407.0,0.00024109,3]
[329475801,1718383856304,-1167.98,0.00024109,3]
[329475803,1718383856329,-611.45,0.00024109,3]
[329475806,1718383856352,-500.0,0.00024109,3]
[329475808,1718383856375,-500.0,0.00024109,3]
[329475810,1718383856402,-1121.64,0.00024109,3]
[329475812,1718383856442,-500.0,0.00024109,3]
[329475815,1718383856465,-236.973455,0.00024109,3]
[329475817,1718383856525,-1928.89,0.00024109,3]
[329475819,1718383856552,-500.0,0.00024109,3]
[329475821,1718383856578,-500.0,0.00024109,3]
[329475824,1718383856625,-569.49,0.00024109,3]
[329475825,1718383856641,-500.0,0.00024109,3]
[329475828,1718383856682,-349.40837241,0.00024109,3]
[329475830,1718383856695,-1435.78,0.00024109,3]
[329475832,1718383856714,-500.0,0.00024109,3]
[329475834,1718383856760,-583.46,0.00024218,2]
[329475835,1718383856776,-180.0,0.0002423,2]
[329475837,1718383856790,-417.89720628,0.00024282,2]
[329475839,1718383856816,-2480.58700382,0.00024283,2]
[329475841,1718383856831,-181.112836,0.00024324,2]
[329475844,1718383856850,-151.67,0.00024363,2]
[329475846,1718383856888,-62030.3623783,0.00024372,3]
[329475848,1718383856905,-753.67,0.00024372,3]
[329475850,1718383856919,-124060.724757,0.00024373,3]
[329475851,1718383856933,-500.0,0.00024382,3]
[329475854,1718383856952,-500.0,0.00024382,3]
[329475856,1718383857012,-500.0,0.00024382,3]
[329475858,1718383857049,-500.0,0.00024382,3]
[329475860,1718383857074,-500.0,0.00024382,3]
[329475861,1718383857120,-500.0,0.00024382,3]
[329475864,1718383857167,-500.0,0.00024382,3]
[329475865,1718383857208,-500.0,0.00024382,3]
[329475868,1718383857224,-500.0,0.00024382,3]
[329475869,1718383857236,-500.0,0.00024382,3]
[329475872,1718383857253,-543.04167128,0.00024382,3]
[329475873,1718383857278,-500.0,0.00024382,3]
[329475876,1718383857291,-500.0,0.00024382,3]
[329475878,1718383857310,-500.0,0.00024382,3]
[329475880,1718383857346,-500.0,0.00024382,3]
[329475882,1718383857362,-500.0,0.00024382,3]
[329475884,1718383857409,-500.0,0.00024382,3]
[329475887,1718383857448,-500.0,0.00024382,3]
[329475890,1718383857479,-571.28615476,0.00024382,3]
[329475891,1718383857504,-307.49654253,0.00024382,3]
[329475894,1718383857528,-500.0,0.00024382,3]
[329475897,1718383857573,-643.2193715,0.00024382,3]
[329475899,1718383857592,-500.0,0.00024382,3]
[329475901,1718383857617,-358.85760761,0.00024382,3]
[329475903,1718383857668,-566.48218201,0.00024382,3]
[329475907,1718383857724,-446.09020365,0.00024382,3]
[329475909,1718383857768,-500.0,0.00024382,3]
[329475911,1718383857782,-500.0,0.00024382,3]
[329475913,1718383857804,-500.0,0.00024382,3]
[329475915,1718383857817,-500.0,0.00024382,3]
[329475917,1718383857832,-500.0,0.00024382,3]
[329475919,1718383857849,-500.0,0.00024382,3]
[329475921,1718383857884,-500.0,0.00024382,3]
[329475922,1718383857897,-500.0,0.00024382,3]
[329475925,1718383857920,-500.0,0.00024382,3]
[329475927,1718383857933,-171.45421636,0.00024382,3]
[329475929,1718383857955,-500.0,0.00024382,3]
[329475931,1718383857979,-500.0,0.00024382,3]
[329475934,1718383858003,-500.0,0.00024382,3]
[329475936,1718383858032,-1005.14,0.00024382,3]
[329475938,1718383858065,-500.0,0.00024382,3]
[329475940,1718383858081,-512.03,0.00024382,3]
[329475942,1718383858116,-500.0,0.00024382,3]
[329475945,1718383858183,-500.0,0.00024382,3]
[329475946,1718383858201,-525.06254555,0.00024382,3]
[329475949,1718383858230,-500.0,0.00024382,3]
[329475951,1718383858243,-500.0,0.00024382,3]
[329475953,1718383858264,-500.0,0.00024382,3]
[329475955,1718383858295,-350.92,0.00024382,3]
[329475957,1718383858339,-500.0,0.00024382,3]
[329475960,1718383858360,-500.0,0.00024382,3]
[329475962,1718383858374,-500.0,0.00024382,3]
[329475964,1718383858389,-500.0,0.00024382,3]
[329475966,1718383858403,-563.32,0.00024382,3]
[329475968,1718383858432,-500.0,0.00024382,3]
[329475970,1718383858458,-500.0,0.00024382,3]
[329475972,1718383858481,-500.0,0.00024382,3]
[329475973,1718383858547,-500.0,0.00024382,3]
[329475975,1718383858583,-500.0,0.00024382,3]
[329475977,1718383858606,-512.96706638,0.00024382,3]
[329475979,1718383858636,-500.0,0.00024382,3]
[329475982,1718383858650,-500.0,0.00024382,3]
[329475984,1718383858664,-500.0,0.00024382,7]
[329475986,1718383858701,-500.0,0.00024382,3]
[329475988,1718383858718,-500.0,0.00024382,3]
[329475990,1718383858736,-500.0,0.00024382,3]
[329475991,1718383858758,-500.0,0.00024382,3]
[329475992,1718383858777,-500.0,0.00024382,3]
[329475993,1718383858816,-500.0,0.00024382,3]
[329475994,1718383858832,-1066.62,0.00024382,3]
[329475995,1718383858846,-500.0,0.00024382,3]
[329475996,1718383858866,-500.0,0.00024382,3]
[329475998,1718383858891,-500.0,0.00024382,3]
[329475999,1718383858909,-500.0,0.00024382,3]
[329476002,1718383858980,-500.0,0.00024382,3]
[329476004,1718383858994,-500.0,0.00024382,3]
[329476006,1718383859024,-500.0,0.00024382,3]
[329476009,1718383859049,-500.0,0.00024382,3]
[329476011,1718383859080,-500.0,0.00024382,3]
[329476013,1718383859125,-500.0,0.00024382,2]
[329476016,1718383859157,-500.0,0.00024382,3]
[329476018,1718383859171,-500.0,0.00024382,3]
[329476020,1718383859199,-500.0,0.00024382,3]
[329476022,1718383859231,-500.0,0.00024382,3]
[329476024,1718383859282,-560.67,0.00024382,3]
[329476026,1718383859313,-620.18,0.00024382,3]
[329476027,1718383859354,-500.0,0.00024382,3]
[329476029,1718383859373,-162.46209032,0.00024382,3]
[329476031,1718383859394,-500.0,0.00024382,3]
[329476033,1718383859408,-417.54539922,0.00024382,3]
[329476035,1718383859452,-500.0,0.00024382,3]
[329476037,1718383859478,-500.0,0.00024382,3]
[329476038,1718383859534,-500.0,0.00024382,3]
[329476040,1718383859567,-496.23354386,0.00024382,3]
[329476042,1718383859592,-500.0,0.00024382,3]
[329476044,1718383859627,-370.27272899,0.00024382,3]
[329476046,1718383859656,-500.0,0.00024382,3]
[329476048,1718383859703,-500.0,0.00024382,3]
[329476050,1718383859718,-500.0,0.00024382,3]
[329476052,1718383859732,-500.0,0.00024382,3]
[329476054,1718383859748,-500.0,0.00024382,3]
[329476056,1718383859773,-500.0,0.00024382,3]
[329476057,1718383859806,-500.0,0.00024382,3]
[329476059,1718383859820,-393.52069921,0.00024382,3]
[329476061,1718383859846,-500.0,0.00024382,3]
[329476064,1718383859876,-500.0,0.00024382,3]
[329476066,1718383859897,-500.0,0.00024382,3]
[329476068,1718383859910,-500.0,0.00024382,3]
[329476071,1718383859938,-271.47943291,0.00024382,3]
[329476073,1718383859949,-619.5,0.00024382,3]
[329476074,1718383859961,-1261.12,0.00024382,3]
[329476075,1718383859974,-500.0,0.00024382,3]
[329476077,1718383860003,-500.0,0.00024382,3]
[329476079,1718383860025,-500.0,0.00024382,3]
[329476081,1718383860043,-500.0,0.00024382,3]
[329476083,1718383860085,-500.0,0.00024382,3]
[329476086,1718383860099,-500.0,0.00024382,3]
[329476087,1718383860142,-569.23567917,0.00024382,3]
[329476088,1718383860172,-500.0,0.00024382,3]
[329476091,1718383860191,-561.30387377,0.00024382,3]
[329476093,1718383860225,-917.98,0.00024382,3]
[329476094,1718383860249,-500.0,0.00024382,3]
[329476097,1718383860275,-500.0,0.00024382,3]
[329476098,1718383860313,-500.0,0.00024382,3]
[329476101,1718383860332,-500.0,0.00024382,3]
[329476102,1718383860344,-500.0,0.00024382,3]
[329476103,1718383860356,-500.0,0.00024382,3]
[329476104,1718383860376,-500.0,0.00024382,3]
[329476105,1718383860392,-500.0,0.00024382,3]
[329476106,1718383860405,-500.0,0.00024382,3]
[329476107,1718383860441,-500.0,0.00024382,3]
[329476109,1718383860477,-520.73,0.00024382,3]
[329476110,1718383860501,-500.0,0.00024382,3]
[329476111,1718383860534,-500.0,0.00024382,3]
[329476113,1718383860549,-636.43,0.00024382,3]
[329476115,1718383860570,-500.0,0.00024382,3]
[329476117,1718383860664,-500.0,0.00024382,3]
[329476118,1718383860692,-500.0,0.00024382,3]
[329476119,1718383860720,-500.0,0.00024382,3]
[329476120,1718383860748,-906.62,0.00024382,3]
[329476121,1718383860764,-500.0,0.00024382,3]
[329476122,1718383860820,-500.0,0.00024382,3]
[329476123,1718383860834,-500.0,0.00024382,3]
[329476124,1718383860852,-500.0,0.00024382,3]
[329476125,1718383860869,-500.0,0.00024382,3]
[329476126,1718383860882,-552.77800837,0.00024382,3]
[329476127,1718383860934,-500.0,0.00024382,3]
[329476128,1718383860947,-346.349378,0.00024382,3]
[329476129,1718383860974,-500.0,0.00024382,3]
[329476130,1718383860991,-500.0,0.00024382,3]
[329476131,1718383861057,-500.0,0.00024382,3]
[329476132,1718383861102,-505.42,0.00024382,3]
[329476133,1718383861178,-500.0,0.00024382,3]
[329476134,1718383861204,-500.0,0.00024382,3]
[329476135,1718383861242,-500.0,0.00024382,3]
[329476136,1718383861268,-500.0,0.00024382,3]
[329476137,1718383861294,-500.0,0.00024382,3]
[329476138,1718383861318,-753.67,0.00024382,3]
[329476139,1718383861332,-500.0,0.00024382,3]
[329476140,1718383861351,-500.0,0.00024382,3]
[329476141,1718383861364,-500.0,0.00024382,3]
[329476142,1718383861384,-500.0,0.00024382,3]
[329476143,1718383861430,-500.0,0.00024382,3]
[329476144,1718383861475,-500.0,0.00024383,2]
[329476145,1718383861498,-500.0,0.00024383,2]
[329476146,1718383861527,-500.0,0.00024383,2]
[329476147,1718383861553,-500.0,0.00024383,2]
[329476148,1718383861573,-500.0,0.00024383,2]
[329476149,1718383861620,-500.0,0.00024383,2]
[329476150,1718383861632,-500.0,0.00024383,2]
[329476151,1718383861662,-500.0,0.00024383,2]
[329476152,1718383861674,-500.0,0.00024383,2]
[329476153,1718383861703,-500.0,0.00024383,2]
[329476154,1718383861721,-500.0,0.00024383,2]
[329476155,1718383861734,-500.0,0.00024383,2]
[329476156,1718383861765,-500.0,0.00024383,2]
[329476157,1718383861833,-976.0,0.00024383,2]
[329476158,1718383861890,-1337.96,0.00024383,3]
[329476159,1718383861963,-1337.96,0.00024383,3]
[329476160,1718383861981,-2331.14,0.00024383,3]
[329476161,1718383862043,-756.36,0.00024383,3]
[329476162,1718383862080,-724.85,0.00024383,3]
[329476163,1718383862095,-500.0,0.00024383,3]
[329476164,1718383862148,-500.0,0.00024383,3]
[329476165,1718383862173,-500.0,0.00024383,3]
[329476166,1718383862188,-500.0,0.00024383,3]
[329476167,1718383862212,-500.0,0.00024383,3]
[329476168,1718383862226,-500.0,0.00024383,3]
[329476169,1718383862280,-500.0,0.00024383,3]
[329476170,1718383862337,-500.0,0.00024383,3]
[329476171,1718383862353,-368.41783005,0.00024383,3]
[329476172,1718383862384,-500.0,0.00024383,3]
[329476173,1718383862423,-600.65,0.00024383,3]
[329476174,1718383862466,-500.0,0.00024383,3]